bitfinex/quotes_ETHUSD_20241130
["timestamp","ask_amount","ask_price","bid_price","bid_amount"]
[1732927691383,2.78375,3592.3,3591.6,2.78421]
[1732927691595,2.78399,3592.0,3591.4,2.78435]
[1732927692330,2.78366,3592.4,3591.5,0.02783872]
[1732927692540,1.5852,3592.8,3591.9,1.5399]
[1732927692720,2.78378,3592.3,3591.9,1.5399]
[1732927693330,2.78372,3592.4,3591.9,1.5399]
[1732927693537,2.78355,3592.6,3592.0,0.02783644]
[1732927693768,2.78355,3592.6,3592.0,2.81178644]
[1732927693899,2.78355,3592.6,3591.9,1.5399]
[1732927693900,2.78359,3592.5,3591.9,1.5399]
[1732927694276,2.78355,3592.6,3592.0,2.78393]
[1732927694540,2.78355,3592.6,3592.0,2.78395]
[1732927694738,2.78367,3592.4,3591.9,1.5399]
[1732927695056,1.5852,3592.6,3591.5,1.5399]
[1732927695240,2.7837,3592.4,3591.7,2.78419]
[1732927695566,2.78359,3592.5,3591.7,2.78419]
[1732927695744,2.78359,3592.5,3592.0,2.78395]
[1732927696045,2.78343,3592.7,3592.1,0.02783522]
[1732927696337,2.78334,3592.8,3592.1,0.02783522]
[1732927696497,2.78339,3592.8,3592.2,4.32365]
[1732927696703,1.5852,3593.0,3592.3,2.78371]
[1732927696704,2.78331,3592.9,3592.3,2.78371]
[1732927696910,2.78311,3593.1,3592.3,2.78371]
[1732927697126,2.78327,3592.9,3592.3,0.02783181]
[1732927697303,2.78327,3592.9,3592.2,1.5399]
[1732927697534,2.78327,3592.9,3592.3,2.78371]
[1732927698153,2.78332,3592.9,3592.2,4.3237]
[1732927698452,2.78334,3592.9,3592.2,4.3237]
[1732927698651,1.5852,3593.3,3592.2,4.3237]
[1732927698652,2.78314,3593.1,3592.2,4.3237]
[1732927698959,2.78336,3592.8,3592.2,4.3237]
[1732927700169,2.78336,3592.8,3591.4,1.5399]
[1732927700170,0.58456313,3592.8,3591.4,1.5399]
[1732927700454,0.58456313,3592.8,3590.5,3.06356]
[1732927700455,2.78456,3591.3,3591.0,1.5399]
[1732927700621,2.78455,3591.3,3590.7,1.5399]
[1732927700829,2.78436,3591.5,3590.9,2.78476]
[1732927701141,2.78405,3591.9,3591.1,2.78463]
[1732927701330,2.78405,3591.9,3591.1,2.7846]
[1732927701331,2.78421,3591.7,3591.1,2.7846]
[1732927702454,2.78405,3591.9,3591.3,2.78443]
[1732927702823,2.78419,3591.7,3591.1,2.78466]
[1732927703026,2.78447,3591.4,3590.8,3.0]
[1732927703348,2.78447,3591.4,3590.9,3.0]
[1732927704146,2.78463,3591.2,3590.8,0.0278435]
[1732927705150,2.78463,3591.2,3590.7,1.5399]
[1732927705351,4.3696,3591.5,3590.8,0.02784595]
[1732927705653,2.7845,3591.3,3590.7,4.32485]
[1732927705850,2.7845,3591.3,3590.7,1.5399]
[1732927706028,2.7845,3591.3,3590.8,2.78487]
[1732927706233,6.15668534,3592.4,3591.0,2.78472]
[1732927706234,2.78424,3591.7,3591.0,2.78472]
[1732927706417,2.78398,3592.0,3591.4,1.5399]
[1732927706611,2.78407,3591.9,3591.4,1.5399]
[1732927707419,2.78412,3591.8,3591.4,1.5399]
[1732927707935,1.5019,3591.6,3590.3,2.7852]
[1732927708136,2.78473,3591.1,3590.5,2.78512]
[1732927708453,2.78455,3591.3,3590.6,2.78503]
[1732927708626,2.78456,3591.3,3590.7,4.35269531]
[1732927708953,2.78456,3591.3,3589.6,2.78581]
[1732927708954,2.78478,3591.0,3590.3,2.78522]
[1732927710056,2.78478,3591.0,3590.4,2.78519]
[1732927710354,2.78478,3591.0,3590.3,2.78522]
[1732927710355,2.78482,3590.9,3590.2,1.5399]
[1732927710582,2.78471,3591.1,3590.4,2.78517]
[1732927710711,2.78471,3591.1,3590.5,0.02784713]
[1732927710909,2.78471,3591.1,3590.5,2.78507]
[1732927711562,1.5019,3591.6,3590.2,4.32525]
[1732927711718,0.17808513,3591.5,3590.2,1.5399]
[1732927711919,1.5019,3591.6,3591.1,2.78464]
[1732927712264,2.7842,3591.7,3590.9,4.3247]
[1732927712563,2.7842,3591.7,3591.0,0.02784278]
[1732927713070,2.78415,3591.8,3591.0,2.81257281]
[1732927713231,5.32528137,3592.4,3591.1,2.78461]
[1732927713232,2.78373,3592.3,3591.1,2.78461]
[1732927713556,2.78373,3592.3,3590.9,1.5399]
[1732927713557,2.78424,3591.7,3591.2,2.78458]
[1732927713751,2.78406,3591.9,3591.2,2.78458]
[1732927714152,2.78406,3591.9,3591.3,2.78449]
[1732927716270,2.78406,3591.9,3591.4,2.78441]
[1732927716434,2.7839,3592.1,3591.4,2.78441]
[1732927716635,2.78382,3592.2,3591.6,2.78422]
[1732927717029,2.78351,3592.6,3591.7,0.02783798]
[1732927717266,2.78381,3592.2,3591.5,1.5399]
[1732927717569,2.78376,3592.3,3591.5,4.3242]
[1732927717774,2.7836,3592.5,3591.7,2.78412]
[1732927718112,2.78351,3592.6,3592.0,2.78396]
[1732927718239,1.5019,3592.8,3591.9,2.78397]
[1732927718441,2.78344,3592.7,3592.2,1.5399]
[1732927719329,2.78344,3592.7,3592.2,4.3237]
[1732927719972,2.78333,3592.9,3592.2,1.5399]
[1732927720273,2.78335,3592.8,3592.2,1.5399]
[1732927720475,2.78321,3593.0,3592.3,2.78367]
[1732927720779,2.78321,3593.0,3592.2,4.32366]
[1732927721150,2.78327,3592.9,3592.3,2.78371]
[1732927722000,2.78311,3593.1,3592.2,4.32366]
[1732927722187,3.21670264,3593.8,3592.3,0.02783173]
[1732927722188,2.78296,3593.3,3592.3,0.02783173]
[1732927722495,2.78311,3593.1,3592.3,2.78369]
[1732927722672,2.78324,3593.0,3592.3,2.78369]
[1732927723118,2.78324,3593.0,3592.4,2.78364]
[1732927723259,2.78298,3593.3,3592.7,2.78339]
[1732927723260,2.78296,3593.3,3592.7,2.78339]
[1732927723457,2.78281,3593.5,3592.9,2.78324]
[1732927723657,2.78265,3593.7,3592.9,1.5399]
[1732927723902,2.78265,3593.7,3593.1,2.7831]
[1732927724084,2.78265,3593.7,3592.9,1.5399]
[1732927724085,2.78272,3593.6,3592.9,1.5399]
[1732927724266,2.78285,3593.5,3592.9,4.3231]
[1732927725403,2.78273,3593.6,3593.0,2.78312]
[1732927726490,2.78257,3593.8,3593.0,2.78312]
[1732927726714,2.78257,3593.8,3593.1,2.78309]
[1732927726972,2.78273,3593.6,3593.0,2.78312]
[1732927727118,0.46470713,3594.0,3592.9,1.5399]
[1732927727430,2.78264,3593.7,3592.9,1.5399]
[1732927727737,2.78273,3593.6,3593.0,2.78316]
[1732927728277,2.78241,3594.0,3593.2,2.78302]
[1732927728432,2.78236,3594.1,3593.4,2.78281]
[1732927728597,1.5859,3594.5,3593.2,0.02782401]
[1732927728598,2.7821,3594.4,3593.2,2.783]
[1732927728796,2.78241,3594.0,3593.4,2.78287]
[1732927729326,2.78239,3594.1,3593.5,2.78278]
[1732927730039,2.7821,3594.4,3593.6,1.609]
[1732927730205,2.78218,3594.3,3593.8,2.7825]
[1732927730598,2.78211,3594.4,3593.8,2.7825]
[1732927731534,2.78211,3594.4,3593.9,2.78247]
[1732927731736,2.78211,3594.4,3593.8,2.7825]
[1732927731893,2.782,3594.6,3593.9,4.39144]
[1732927732099,2.782,3594.6,3594.0,2.7824]
[1732927732288,5.56372,3594.8,3594.1,2.78232]
[1732927732497,2.78164,3595.0,3594.1,0.02781853]
[1732927732805,3.21670264,3595.8,3594.1,0.02781853]
[1732927732806,1.5859,3595.6,3594.7,2.78185]
[1732927733004,1.5859,3595.6,3594.6,1.609]
[1732927733210,2.78152,3595.2,3594.6,1.609]
[1732927733453,2.78152,3595.2,3594.6,4.39092]
[1732927734137,2.78152,3595.2,3594.7,2.78186]
[1732927734479,7.14833,3595.6,3594.8,2.78179]
[1732927734635,4.5859,3596.0,3594.6,4.39094]
[1732927734830,2.78124,3595.6,3594.8,3.45315948]
[1732927735149,2.78126,3595.5,3594.8,3.45315948]
[1732927735360,2.78126,3595.5,3594.8,3.19491353]
[1732927735846,2.78126,3595.5,3594.9,2.7817]
[1732927736250,2.78126,3595.5,3594.9,3.29811647]
[1732927736576,2.78111,3595.7,3594.9,2.7817]
[1732927736741,2.78096,3595.9,3594.9,2.80951064]
[1732927736936,2.78103,3595.8,3595.2,2.78147]
[1732927737183,2.78096,3595.9,3595.2,2.78147]
[1732927737676,2.78113,3595.7,3595.1,2.78155]
[1732927737985,2.7812,3595.6,3595.0,1.609]
[1732927738138,2.78097,3595.9,3595.0,1.609]
[1732927738333,1.7428901,3596.4,3595.0,1.609]
[1732927738334,2.78072,3596.2,3595.5,2.7812]
[1732927738538,2.78079,3596.1,3595.3,0.02780796]
[1732927738762,2.78089,3596.0,3595.4,2.78132]
[1732927739635,1.7428901,3596.4,3595.2,2.78142]
[1732927739836,2.78099,3595.9,3595.3,2.7814]
[1732927741074,2.78099,3595.9,3595.2,2.78143]
[1732927741386,2.78102,3595.8,3595.2,2.78147]
[1732927741759,1.7428901,3596.4,3595.0,1.609]
[1732927742098,1.7428901,3596.4,3595.3,2.78133]
[1732927742294,2.78091,3596.0,3595.4,2.78132]
[1732927742481,2.78096,3595.9,3595.2,2.78148]
[1732927742797,2.78096,3595.9,3595.2,2.78142]
[1732927742955,1.7428901,3596.4,3595.2,2.78142]
[1732927743160,1.7428901,3596.4,3595.0,1.609]
[1732927743161,2.78069,3596.3,3595.0,1.63680807]
[1732927743369,2.78076,3596.2,3595.6,4.39014]
[1732927743569,2.78076,3596.2,3595.7,2.78109]
[1732927743996,2.9375801,3596.4,3595.7,2.78109]
[1732927744178,0.1569901,3596.4,3595.8,2.78097]
[1732927744511,0.1569901,3596.4,3595.6,1.609]
[1732927744804,0.1569901,3596.4,3596.0,2.78081]
[1732927745164,0.02608491,3596.3,3596.0,2.78081]
[1732927745564,0.02608491,3596.3,3596.0,0.55]
[1732927745881,0.02608491,3596.3,3595.9,0.55]
[1732927746330,0.02608491,3596.3,3596.1,0.55]
[1732927747278,0.02608491,3596.3,3596.0,0.55]
[1732927747483,0.02608491,3596.3,3596.0,3.35863418]
[1732927747684,0.02608491,3596.3,3596.1,2.78077]
[1732927748019,0.02608491,3596.3,3596.2,3.33071]
[1732927748307,0.02608491,3596.3,3596.2,4.85031]
[1732927748871,0.1569901,3596.4,3596.3,2.78063]
[1732927749071,0.1569901,3596.4,3596.3,3.33063]
[1732927749397,0.18309252,3596.4,3596.3,3.33063]
[1732927749715,0.18309252,3596.4,3596.3,6.35843057]
[1732927750006,0.1569901,3596.4,3596.3,6.33063]
[1732927750506,2.77988,3597.3,3596.4,0.55]
[1732927750671,2.77988,3597.3,3596.7,0.55]
[1732927750869,2.80635153,3597.2,3596.7,0.55]
[1732927751065,2.77984,3597.4,3596.7,3.3303]
[1732927751270,0.02634989,3597.1,3596.7,0.55]
[1732927751517,3.65473,3597.5,3596.7,3.33028]
[1732927751682,0.02635043,3597.0,3596.7,3.33028]
[1732927751885,2.77991,3597.3,3596.7,3.33028]
[1732927752094,2.78029,3596.8,3596.2,1.5196]
[1732927752282,2.78029,3596.8,3596.2,4.5196]
[1732927752497,0.02630332,3596.7,3596.2,7.3003]
[1732927752674,2.78056,3596.4,3595.8,4.5196]
[1732927753015,4.39955,3597.2,3596.6,2.7804]
[1732927753174,1.6196,3597.2,3596.6,2.7804]
[1732927753396,4.39958,3597.2,3596.7,0.55]
[1732927755212,1.6196,3597.2,3596.6,0.55]
[1732927755418,2.78029,3596.8,3596.3,3.0]
[1732927755588,2.78013,3597.0,3596.4,3.33054]
[1732927755946,4.39956,3597.2,3596.7,0.55]
[1732927756225,4.39956,3597.2,3596.1,1.5196]
[1732927756226,1.6196,3596.8,3595.7,1.5196]
[1732927756418,1.6196,3596.8,3594.6,0.2785]
[1732927756419,2.78032,3596.7,3594.9,3.2085]
[1732927756714,0.02789513,3596.6,3595.2,2.78146]
[1732927756870,0.02789513,3596.6,3595.0,4.30123]
[1732927756871,2.7811,3595.7,3595.0,4.30123]
[1732927757067,2.78118,3595.6,3595.0,1.5196]
[1732927757310,0.02522155,3595.6,3595.0,4.30123]
[1732927758427,0.02522155,3595.6,3595.1,0.55]
[1732927758578,2.80640155,3595.6,3595.1,0.55]
[1732927759083,0.02522155,3595.6,3595.1,3.33155]
[1732927759286,0.02522155,3595.6,3595.3,2.7814]
[1732927759617,2.78089,3596.0,3595.4,0.55]
[1732927759855,2.7805,3596.5,3595.7,0.55]
[1732927760012,4.4,3596.6,3596.0,0.55]
[1732927760216,2.7806,3596.4,3596.0,0.55]
[1732927760415,7.18048,3596.6,3595.9,0.55]
[1732927760614,4.40002,3596.6,3595.9,0.55]
[1732927760827,2.78042,3596.6,3596.0,0.55]
[1732927761046,2.78048,3596.5,3596.0,0.55]
[1732927761641,2.78033,3596.7,3596.0,3.33085]
[1732927761805,2.78033,3596.7,3596.0,0.55]
[1732927762005,2.7805,3596.5,3596.0,0.55]
[1732927762446,2.78033,3596.7,3596.0,0.55]
[1732927762617,2.78042,3596.6,3596.0,0.55]
[1732927763508,0.02489023,3596.5,3596.0,0.55]
[1732927764707,2.80539023,3596.5,3596.0,0.55]
[1732927765103,0.02489023,3596.5,3596.0,0.55]
[1732927766227,2.78054,3596.5,3596.0,0.55]
[1732927767179,0.02484853,3596.4,3596.0,0.55]
[1732927767347,2.78033,3596.7,3596.0,2.78086]
[1732927767555,0.02483689,3596.3,3596.2,3.33071]
[1732927767758,2.4276,3597.5,3596.8,0.55]
[1732927767938,2.4276,3597.5,3596.4,0.55]
[1732927767939,3.65472,3597.5,3597.0,0.55]
[1732927768425,0.875,3597.5,3597.0,3.33009]
[1732927769051,0.875,3597.5,3597.0,4.87079]
[1732927769369,0.875,3597.5,3597.2,2.77988]
[1732927769520,0.02438647,3597.4,3597.3,0.55]
[1732927769835,0.02438647,3597.4,3597.0,4.32079]
[1732927769836,0.02438647,3597.4,3597.2,0.55]
[1732927770034,0.02438647,3597.4,3597.3,0.55]
[1732927770236,0.02438647,3597.4,3597.3,3.32986]
[1732927770423,0.02438647,3597.4,3597.3,4.87056]
[1732927770620,0.875,3597.5,3597.4,3.32978]
[1732927772625,0.875,3597.5,3597.4,4.87048]
[1732927782590,0.89978396,3597.5,3597.4,4.87048]
[1732927782999,0.875,3597.5,3597.4,4.87048]
[1732927786066,0.24940872,3597.5,3597.4,4.87048]
[1732927786268,0.24940872,3597.5,3597.4,4.89827015]
[1732927788104,0.24940872,3597.5,3597.4,7.89827015]
[1732927788312,1.5526,3598.9,3597.5,5.7797]
[1732927788606,1.5526,3598.9,3598.5,3.32888]
[1732927788607,0.0251305,3598.8,3598.5,3.32888]
[1732927788812,0.0251305,3598.8,3598.5,0.55]
[1732927789016,0.0251305,3598.8,3597.7,4.2802]
[1732927789017,2.77955,3597.7,3597.0,1.5007]
[1732927789200,1.5988,3597.8,3596.6,4.28109]
[1732927789201,2.77988,3597.3,3596.6,4.28109]
[1732927789370,4.37833,3597.8,3596.6,1.5007]
[1732927789371,0.02528219,3597.2,3596.6,1.5007]
[1732927789714,1.5988,3597.1,3596.6,2.78034]
[1732927790007,0.02527055,3597.1,3597.0,2.78009]
[1732927790307,1.5988,3597.5,3597.1,2.77996]
[1732927790494,1.5988,3597.5,3596.4,5.31594538]
[1732927790682,1.5988,3597.5,3597.1,2.77996]
[1732927791418,1.5988,3597.5,3596.8,0.55]
[1732927791655,2.78016,3597.0,3596.3,2.7806]
[1732927791912,2.77998,3597.2,3596.5,2.78047]
[1732927792097,2.77998,3597.2,3596.0,2.53543538]
[1732927792408,2.77998,3597.2,3596.6,5.56066]
[1732927792809,2.77998,3597.2,3596.7,3.33032]
[1732927793114,0.0250557,3597.1,3596.7,3.33032]
[1732927793428,2.77986,3597.3,3596.7,0.55]
[1732927793575,0.02504406,3597.0,3596.7,3.3303]
[1732927793913,4.37853,3597.5,3596.9,2.78016]
[1732927794098,4.37853,3597.5,3597.0,0.55]
[1732927794407,2.77979,3597.4,3596.9,0.55]
[1732927795074,4.37853,3597.5,3596.9,3.33014]
[1732927795418,1.5988,3597.5,3597.2,0.55]
[1732927795621,4.37851,3597.5,3597.2,0.55]
[1732927795818,4.37851,3597.5,3597.0,0.55]
[1732927796111,4.37851,3597.5,3596.8,3.33022]
[1732927796330,1.5988,3597.5,3596.8,0.55]
[1732927796475,2.78029,3596.8,3596.2,3.33071]
[1732927796811,0.0248722,3596.7,3596.6,0.55]
[1732927796986,1.5988,3596.9,3596.6,0.55]
[1732927797187,0.02488384,3596.8,3596.5,0.55]
[1732927797396,0.02488384,3596.8,3596.5,3.0]
[1732927797713,0.02488384,3596.8,3596.7,0.55]
[1732927798111,2.80512384,3596.8,3596.7,0.55]
[1732927798613,0.02488384,3596.8,3596.7,0.55]
[1732927798792,0.02488384,3596.8,3596.4,0.55]
[1732927798991,2.80513384,3596.8,3596.4,0.55]
[1732927799200,0.02488384,3596.8,3596.4,0.55]
[1732927799415,0.02488384,3596.8,3596.5,0.55]
[1732927799601,1.5988,3596.9,3596.4,0.55]
[1732927799806,2.78024,3596.8,3596.7,0.55]
[1732927799982,2.80512384,3596.8,3596.7,0.55]
[1732927800326,0.02488384,3596.8,3596.4,0.55]
[1732927800488,0.02488384,3596.8,3596.1,3.0]
[1732927800698,2.78032,3596.7,3595.6,4.03613538]
[1732927800927,2.7807,3596.3,3595.6,4.28187]
[1732927801078,1.5988,3596.2,3595.6,2.78117]
[1732927801417,1.62360942,3596.2,3595.3,1.5007]
[1732927801722,1.62360942,3596.2,3595.5,2.78123]
[1732927802022,1.62360942,3596.2,3595.7,2.78104]
[1732927802180,1.62360942,3596.2,3595.6,2.78111]
[1732927802608,1.62360942,3596.2,3595.8,2.78097]
[1732927802826,1.62360942,3596.2,3595.2,2.53543538]
[1732927802827,2.78106,3595.8,3595.2,5.78147]
[1732927803118,0.02803699,3595.7,3595.2,5.78147]
[1732927803415,1.5988,3596.2,3595.5,3.0]
[1732927803628,2.77996,3597.2,3595.4,2.78133]
[1732927803629,0.02803671,3596.1,3595.9,2.78089]
[1732927803828,1.5988,3596.9,3596.5,2.78047]
[1732927803976,1.5988,3596.9,3596.2,0.55]
[1732927804177,1.5988,3596.9,3596.5,0.55]
[1732927804424,1.5988,3596.9,3596.7,0.55]
[1732927804714,2.80462684,3596.8,3596.7,0.55]
[1732927805622,2.80462684,3596.8,3596.4,0.55]
[1732927805984,0.02438684,3596.8,3596.4,3.33055]
[1732927806212,2.78001,3597.1,3596.4,3.33055]
[1732927806419,2.80627038,3597.0,3596.6,0.55]
[1732927806620,0.02617038,3597.0,3596.8,0.55]
[1732927806820,4.37874,3597.2,3596.8,0.55]
[1732927807178,0.02451537,3597.1,3596.8,0.55]
[1732927807909,1.539,3596.8,3595.7,1.5909]
[1732927808107,1.539,3596.8,3596.3,2.78061]
[1732927808319,0.02461344,3596.7,3596.3,2.78061]
[1732927808713,4.31925,3596.8,3596.3,2.78061]
[1732927808900,4.31925,3596.8,3595.7,1.5909]
[1732927808901,1.539,3596.8,3595.9,2.78091]
[1732927809224,1.539,3596.8,3595.4,1.5909]
[1732927809225,2.78057,3596.4,3595.7,2.78108]
[1732927809386,2.80526973,3596.3,3595.7,2.78108]
[1732927809585,1.539,3596.2,3595.4,4.37222]
[1732927809782,0.02627634,3596.1,3595.4,1.5909]
[1732927810021,0.02627634,3596.1,3595.4,2.78132]
[1732927810237,0.02627634,3596.1,3595.0,0.2785]
[1732927810238,0.02627634,3596.1,3595.1,2.78156]
[1732927810526,0.02627634,3596.1,3595.7,2.78104]
[1732927811020,0.02627634,3596.1,3595.8,0.55]
[1732927811525,0.02627634,3596.1,3595.6,3.33113]
[1732927811716,0.02627634,3596.1,3595.7,2.78108]
[1732927811901,0.02627634,3596.1,3595.8,0.55]
[1732927812320,0.02627634,3596.1,3595.6,0.55]
[1732927812606,0.02627634,3596.1,3596.0,0.55]
[1732927812802,1.539,3595.8,3595.4,0.55]
[1732927813029,1.539,3595.8,3594.8,2.53543538]
[1732927813030,2.78117,3595.6,3595.5,0.51797457]
[1732927813391,1.539,3595.8,3595.2,2.78142]
[1732927813593,1.539,3596.1,3595.5,2.78117]
[1732927813832,1.539,3596.1,3595.8,2.78099]
[1732927814135,2.78066,3596.3,3595.9,0.51797457]
[1732927814327,2.78072,3596.2,3596.0,0.51797457]
[1732927814531,2.78072,3596.2,3595.9,0.55]
[1732927814700,2.78072,3596.2,3596.1,0.55]
[1732927815103,2.7806,3596.4,3595.8,0.55]
[1732927815302,2.7806,3596.4,3596.0,0.55]
[1732927815491,4.31951,3596.5,3596.2,0.55]
[1732927815720,1.539,3596.5,3596.2,1.06797457]
[1732927815935,1.539,3596.5,3596.4,0.55]
[1732927816151,4.31948,3596.5,3596.4,1.06797457]
[1732927816360,4.31948,3596.5,3596.4,0.55]
[1732927816650,2.78065,3596.3,3596.1,0.55]
[1732927816853,4.31948,3596.5,3596.1,0.55]
[1732927817739,4.31948,3596.5,3596.0,0.55]
[1732927818054,4.31948,3596.5,3596.0,3.33086]
[1732927818565,1.539,3596.5,3596.2,0.55]
[1732927818853,1.539,3596.5,3595.9,2.78088]
[1732927818854,4.31948,3596.5,3596.0,0.55]
[1732927819445,1.539,3596.5,3596.0,0.55]
[1732927819662,1.539,3596.5,3596.2,0.55]
[1732927820014,2.73061,3596.4,3595.9,0.55]
[1732927820356,1.539,3596.5,3596.1,2.78078]
[1732927820521,1.539,3596.5,3595.9,6.1118]
[1732927820717,1.539,3596.5,3595.9,3.33088]
[1732927820912,4.31948,3596.5,3596.1,0.55]
[1732927821116,4.31948,3596.5,3596.3,0.55]
[1732927821325,4.31948,3596.5,3596.4,1.06940395]
[1732927821732,1.539,3596.8,3596.5,0.55]
[1732927821940,4.31925,3596.8,3596.7,0.55]
[1732927822217,4.31925,3596.8,3596.7,1.06940395]
[1732927822218,1.539,3596.8,3596.7,1.06940395]
[1732927822856,1.539,3596.8,3596.7,1.06949899]
[1732927822857,4.31924,3596.8,3596.7,1.06949899]
[1732927824785,4.34713513,3596.8,3596.7,0.51949899]
[1732927824949,4.57932095,3596.8,3596.7,0.51949899]
[1732927825583,2.78089,3596.0,3595.4,5.78132]
[1732927825754,2.78089,3596.0,3595.5,0.52015965]
[1732927826085,2.78089,3596.0,3595.7,0.55]
[1732927826285,2.78079,3596.1,3595.9,0.55]
[1732927826450,2.78079,3596.1,3596.0,1.07015965]
[1732927827372,2.82631749,3596.1,3596.0,1.07015965]
[1732927828182,4.34481749,3596.1,3596.0,1.07015965]
[1732927828494,4.29929,3596.1,3596.0,1.07015965]
[1732927829785,4.33975401,3596.1,3596.0,1.07015965]
[1732927829992,2.7807,3596.3,3596.1,0.55]
[1732927830289,2.7807,3596.3,3596.2,1.07015965]
[1732927830663,1.5185,3596.4,3596.2,1.06990136]
[1732927830867,1.5185,3596.9,3596.3,1.06990136]
[1732927831077,2.78024,3596.8,3596.5,0.55]
[1732927831253,2.78032,3596.7,3596.6,1.06990136]
[1732927831898,2.80821513,3596.7,3596.6,1.06990136]
[1732927832064,5.26961696,3596.7,3596.6,0.51990136]
[1732927832270,5.6858095,3596.7,3596.6,0.51990136]
[1732927832466,2.78075,3596.2,3595.1,1.6663]
[1732927832794,2.78066,3596.3,3595.7,2.78108]
[1732927832977,1.5185,3596.7,3595.8,4.96716797]
[1732927833194,4.29887,3596.7,3596.1,2.78077]
[1732927833490,2.83954752,3596.6,3596.3,0.55]
[1732927833696,0.05914752,3596.6,3596.5,0.55]
[1732927833897,0.05914752,3596.6,3596.5,1.06988797]
[1732927835150,2.78033,3596.7,3596.5,1.06988797]
[1732927835389,2.78033,3596.7,3596.6,1.06988797]
[1732927835763,2.78024,3596.8,3596.7,0.55]
[1732927836001,2.78018,3596.9,3596.7,1.06981369]
[1732927836287,2.78018,3596.9,3596.8,1.06981369]
[1732927836851,2.83948306,3596.9,3596.8,1.06981369]
[1732927837055,0.05930306,3596.9,3596.8,1.06981369]
[1732927837465,2.78014,3597.0,3596.8,1.06981369]
[1732927837674,2.78014,3597.0,3596.9,1.06981369]
[1732927838191,2.68294,3597.0,3596.9,1.06981369]
[1732927838405,2.60834,3597.0,3596.9,1.06981369]
[1732927838560,2.52024,3597.0,3596.9,1.06981369]
[1732927840502,2.57953887,3597.0,3596.9,1.06981369]
[1732927842502,2.57953887,3597.0,3596.9,0.55]
[1732927843021,2.57953887,3597.0,3596.9,1.06984765]
[1732927843584,2.83968723,3597.0,3596.9,1.06984765]
[1732927844337,2.57953887,3597.0,3596.9,1.06984765]
[1732927844898,2.83968799,3597.0,3596.9,1.06984765]
[1732927845513,2.57953887,3597.0,3596.9,1.06984765]
[1732927845819,2.83969535,3597.0,3596.9,1.06984765]
[1732927847306,2.57953887,3597.0,3596.9,1.06984765]
[1732927847498,2.57953887,3597.0,3596.9,0.51984765]
[1732927848221,2.83969462,3597.0,3596.9,0.51984765]
[1732927851311,2.78047,3596.6,3596.2,0.55]
[1732927851689,2.83959309,3596.5,3596.2,0.55]
[1732927851916,2.83959309,3596.5,3596.4,0.55]
[1732927852117,2.83959309,3596.5,3596.4,0.51956411]
[1732927852422,2.83959309,3596.5,3596.4,1.06956411]
[1732927852846,2.83959309,3596.5,3596.4,0.51963383]
[1732927852847,4.47888822,3596.5,3596.4,0.51963383]
[1732927852986,1.6114,3595.6,3594.3,1.6296]
[1732927853199,1.6114,3595.4,3594.4,0.5199006]
[1732927853434,2.78198,3594.6,3594.5,0.51997553]
[1732927853779,0.05882122,3594.6,3594.5,0.51997553]
[1732927854342,0.1,3596.2,3594.5,0.51997553]
[1732927854343,2.78187,3594.7,3594.5,0.51997553]
[1732927854539,2.78177,3594.9,3594.6,0.51997553]
[1732927854840,2.78167,3595.0,3594.8,0.55]
[1732927855040,2.78161,3595.1,3595.0,0.55]
[1732927855293,2.78161,3595.1,3595.0,1.06997553]
[1732927855586,2.83996313,3595.1,3595.0,0.55]
[1732927855959,2.83996313,3595.1,3595.0,1.06997553]
[1732927856171,2.83996313,3595.1,3594.9,0.55]
[1732927856360,2.78164,3595.0,3594.9,0.55]
[1732927856542,2.78164,3595.0,3594.9,1.06997553]
[1732927856741,2.78176,3594.9,3594.6,0.55]
[1732927856975,2.78176,3594.9,3594.8,0.55]
[1732927857176,2.78176,3594.9,3594.8,1.06997553]
[1732927857338,2.78176,3594.9,3594.6,0.55]
[1732927857558,2.78176,3594.9,3594.8,0.55]
[1732927858110,2.78187,3594.7,3594.5,0.55]
[1732927858306,2.78192,3594.7,3594.5,0.55]
[1732927859067,2.84026639,3594.6,3594.5,0.55]
[1732927859390,2.84026639,3594.6,3594.2,0.55]
[1732927860419,0.05831639,3594.6,3594.2,0.55]
[1732927860916,1.89541164,3594.6,3593.0,1.6296]
[1732927861070,2.78273,3593.6,3593.0,1.6296]
[1732927861268,0.05814203,3593.5,3593.0,4.41278]
[1732927861484,0.02789513,3594.5,3593.0,1.6296]
[1732927861716,2.78273,3593.6,3593.0,1.6296]
[1732927861878,2.78288,3593.4,3593.0,1.6296]
[1732927862081,0.05802492,3593.5,3593.0,1.6296]
[1732927862279,2.84085404,3593.3,3593.1,0.25921484]
[1732927862479,1.6114,3593.8,3593.1,0.25921484]
[1732927862480,2.78303,3593.2,3593.1,0.25921484]
[1732927862680,2.84085319,3593.2,3593.1,0.25921484]
[1732927863670,2.84085319,3593.2,3593.1,0.93284206]
[1732927863899,5.01462851,3593.2,3593.0,0.43202474]
[1732927864097,2.78311,3593.1,3593.0,0.43202474]
[1732927864542,2.84069037,3593.1,3593.0,0.43202474]
[1732927864872,0.05758037,3593.1,3593.0,0.43202474]
[1732927865089,2.84069037,3593.1,3593.0,0.43202474]
[1732927865288,3.40305441,3593.1,3593.0,0.43202474]
[1732927865493,2.84069037,3593.1,3593.0,0.43202474]
[1732927866036,0.05758037,3593.1,3593.0,0.43202474]
[1732927866399,2.78311,3593.1,3593.0,0.43202474]
[1732927866592,2.84061795,3593.1,3593.0,0.98202474]
[1732927866789,0.05750795,3593.1,3593.0,0.98202474]
[1732927867230,2.78296,3593.3,3593.1,0.55]